[Event "*** Titled Tuesday Blitz"]
[Site "Chess.com"]
[Date "2021.03.16"]
[Round "6"]
[White "GelmanAlexander"]
[Black "Myshakov_Fedor"]
[Result "0-1"]
[WhiteElo "2558"]
[BlackElo "2373"]
[TimeControl "180+1"]
[EndTime "11:08:27 PDT"]
[Termination "Myshakov_Fedor won on time"]

1. d4 {[%clk 0:03:00.9]} 1... d5 {[%clk 0:02:59.6]} 2. Nc3 {[%clk 0:03:01.1]}
2... Nf6 {[%clk 0:02:59.4]} 3. Bf4 {[%clk 0:03:01.6]} 3... Bf5 {[%clk
0:02:59.3]} 4. f3 {[%clk 0:03:01.6]} 4... e6 {[%clk 0:02:59.3]} 5. g4 {[%clk
0:03:01.7]} 5... Bg6 {[%clk 0:02:59.2]} 6. h4 {[%clk 0:03:02.6]} 6... h6 {[%clk
0:02:58.9]} 7. e3 {[%clk 0:03:02.3]} 7... Bd6 {[%clk 0:02:58.6]} 8. Nh3 {[%clk
0:02:54.3]} 8... c6 {[%clk 0:02:42.7]} 9. Qd2 {[%clk 0:02:50.7]} 9... Bc7 {[%clk
0:02:39.4]} 10. O-O-O {[%clk 0:02:48.1]} 10... Nbd7 {[%clk 0:02:39.4]} 11. Bxc7
{[%clk 0:02:36.7]} 11... Qxc7 {[%clk 0:02:38.6]} 12. Nf4 {[%clk 0:02:37.6]}
12... Bh7 {[%clk 0:02:38.2]} 13. g5 {[%clk 0:02:37.7]} 13... Ng8 {[%clk
0:02:36.5]} 14. e4 {[%clk 0:02:29.1]} 14... dxe4 {[%clk 0:02:34.7]} 15. fxe4
{[%clk 0:02:28.9]} 15... O-O-O {[%clk 0:02:33.9]} 16. g6 {[%clk 0:01:47.3]}
16... Bxg6 {[%clk 0:02:29.5]} 17. Nxg6 {[%clk 0:01:46.6]} 17... fxg6 {[%clk
0:02:30.4]} 18. Bh3 {[%clk 0:01:46.7]} 18... Re8 {[%clk 0:02:20.3]} 19. d5
{[%clk 0:01:39.7]} 19... Ngf6 {[%clk 0:02:09.1]} 20. Bxe6 {[%clk 0:01:22.8]}
20... Kb8 {[%clk 0:02:08.3]} 21. Qd4 {[%clk 0:01:00.2]} 21... Qe5 {[%clk
0:01:48.4]} 22. Qb4 {[%clk 0:00:51.4]} 22... Nb6 {[%clk 0:01:44.7]} 23. Kb1
{[%clk 0:00:43.3]} 23... cxd5 {[%clk 0:01:34.6]} 24. exd5 {[%clk 0:00:43]} 24...
Rd8 {[%clk 0:01:28.6]} 25. Rhe1 {[%clk 0:00:41.4]} 25... Qd6 {[%clk 0:01:27.8]}
26. Qa5 {[%clk 0:00:38.7]} 26... Nc4 {[%clk 0:01:21.4]} 27. Qb5 {[%clk
0:00:36.8]} 27... Nb6 {[%clk 0:01:12.3]} 28. a4 {[%clk 0:00:36.6]} 28... a6
{[%clk 0:01:09.1]} 29. Qb3 {[%clk 0:00:33.6]} 29... Rhe8 {[%clk 0:01:08.4]} 30.
a5 {[%clk 0:00:33.2]} 30... Nbd7 {[%clk 0:01:07.1]} 31. Bxd7 {[%clk 0:00:23.8]}
31... Rxe1 {[%clk 0:01:04.1]} 32. Rxe1 {[%clk 0:00:23.9]} 32... Qxd7 {[%clk
0:00:57.4]} 33. Rd1 {[%clk 0:00:20.5]} 33... g5 {[%clk 0:00:56.3]} 34. hxg5
{[%clk 0:00:19.9]} 34... hxg5 {[%clk 0:00:55.8]} 35. Qb4 {[%clk 0:00:20.6]}
35... Qd6 {[%clk 0:00:52.3]} 36. Qc4 {[%clk 0:00:19.6]} 36... Rc8 {[%clk
0:00:51]} 37. Qd4 {[%clk 0:00:19.4]} 37... Rc5 {[%clk 0:00:46.3]} 38. Re1 {[%clk
0:00:17.4]} 38... Nxd5 {[%clk 0:00:40.6]} 39. Ne4 {[%clk 0:00:15.4]} 39... Nc3+
{[%clk 0:00:34.8]} 40. bxc3 {[%clk 0:00:15.2]} 40... Rb5+ {[%clk 0:00:34.5]} 41.
Kc1 {[%clk 0:00:14.1]} 41... Qa3+ {[%clk 0:00:30.1]} 42. Kd2 {[%clk 0:00:13.3]}
42... Qxa5 {[%clk 0:00:29.7]} 43. Qxg7 {[%clk 0:00:11.1]} 43... Rd5+ {[%clk
0:00:27.4]} 44. Ke3 {[%clk 0:00:11.5]} 44... Qb6+ {[%clk 0:00:26.1]} 45. Kf3
{[%clk 0:00:11.4]} 45... Rf5+ {[%clk 0:00:24]} 46. Kg2 {[%clk 0:00:11.8]} 46...
Qc6 {[%clk 0:00:18.9]} 47. Qh8+ {[%clk 0:00:11.4]} 47... Ka7 {[%clk 0:00:18.1]}
48. Qd4+ {[%clk 0:00:11.9]} 48... Kb8 {[%clk 0:00:17.9]} 49. Kg1 {[%clk
0:00:12.4]} 49... Rf4 {[%clk 0:00:16.7]} 50. Qd6+ {[%clk 0:00:10.7]} 50... Qxd6
{[%clk 0:00:15.6]} 51. Nxd6 {[%clk 0:00:11.3]} 51... Rf3 {[%clk 0:00:13.7]} 52.
Ne4 {[%clk 0:00:10.8]} 52... Rf5 {[%clk 0:00:12.2]} 53. Kg2 {[%clk 0:00:11.2]}
53... Kc7 {[%clk 0:00:11.7]} 54. Rf1 {[%clk 0:00:11.4]} 54... Re5 {[%clk
0:00:11]} 55. Kf3 {[%clk 0:00:11.9]} 55... Kc6 {[%clk 0:00:09.4]} 56. Rg1 {[%clk
0:00:11.9]} 56... Kb5 {[%clk 0:00:08.6]} 57. Ke3 {[%clk 0:00:11.5]} 57... Kc4
{[%clk 0:00:08.5]} 58. Rg4 {[%clk 0:00:10.3]} 58... a5 {[%clk 0:00:07.2]} 59.
Rg1 {[%clk 0:00:08.7]} 59... a4 {[%clk 0:00:06]} 60. Rd1 {[%clk 0:00:08.2]}
60... a3 {[%clk 0:00:04.7]} 61. Ra1 {[%clk 0:00:08.4]} 61... Ra5 {[%clk
0:00:03.8]} 62. Ra2 {[%clk 0:00:07.2]} 62... b5 {[%clk 0:00:03.4]} 63. Nd2+
{[%clk 0:00:06]} 63... Kxc3 {[%clk 0:00:03.3]} 64. Nb3 {[%clk 0:00:06.1]} 64...
Ra4 {[%clk 0:00:03.2]} 65. Nd2 {[%clk 0:00:05.3]} 65... g4 {[%clk 0:00:02.4]}
66. Nb1+ {[%clk 0:00:05.8]} 66... Kc4 {[%clk 0:00:01.8]} 67. Nxa3+ {[%clk
0:00:05.6]} 67... Kb4 {[%clk 0:00:01.4]} 68. c3+ {[%clk 0:00:04.7]} 68... Kb3
{[%clk 0:00:01.5]} 69. Rg2 {[%clk 0:00:03.9]} 69... Rxa3 {[%clk 0:00:01.5]} 70.
Rxg4 {[%clk 0:00:04.3]} 70... Kxc3 {[%clk 0:00:01.9]} 71. Rg1 {[%clk 0:00:03.1]}
71... b4 {[%clk 0:00:01.9]} 72. Rc1+ {[%clk 0:00:02.7]} 72... Kb2+ {[%clk
0:00:02.1]} 73. Kd2 {[%clk 0:00:02.5]} 73... Rh3 {[%clk 0:00:02.4]} 74. Rc2+
{[%clk 0:00:02.5]} 74... Kb1 {[%clk 0:00:02.4]} 75. Rc7 {[%clk 0:00:03.4]} 75...
b3 {[%clk 0:00:02.5]} 76. Rb7 {[%clk 0:00:03.5]} 76... b2 {[%clk 0:00:02.9]} 77.
Rd7 {[%clk 0:00:02.9]} 77... Ra3 {[%clk 0:00:03.3]} 78. Rb7 {[%clk 0:00:01]}
78... Ra6 {[%clk 0:00:03.5]} 0-1

[Event "*** Titled Tuesday Blitz"]
[Site "Chess.com"]
[Date "2021.03.16"]
[Round "6"]
[White "Speed-O-Sonic"]
[Black "Oligan22"]
[Result "1-0"]
[WhiteElo "2377"]
[BlackElo "2488"]
[TimeControl "180+1"]
[EndTime "11:08:29 PDT"]
[Termination "Speed-O-Sonic won on time"]

1. d4 {[%clk 0:02:59.7]} 1... Nf6 {[%clk 0:02:59]} 2. Bg5 {[%clk 0:02:59.4]}
2... d5 {[%clk 0:02:57.3]} 3. Bxf6 {[%clk 0:02:59.3]} 3... exf6 {[%clk
0:02:58.2]} 4. e3 {[%clk 0:02:58.1]} 4... Be6 {[%clk 0:02:58.2]} 5. g3 {[%clk
0:02:53.5]} 5... c5 {[%clk 0:02:57.9]} 6. Bg2 {[%clk 0:02:51.3]} 6... Nc6 {[%clk
0:02:57.7]} 7. Ne2 {[%clk 0:02:50.6]} 7... Qb6 {[%clk 0:02:55.3]} 8. b3 {[%clk
0:02:40.7]} 8... cxd4 {[%clk 0:02:54.5]} 9. Nxd4 {[%clk 0:02:41.6]} 9... Nxd4
{[%clk 0:02:45.7]} 10. Qxd4 {[%clk 0:02:42.5]} 10... Bc5 {[%clk 0:02:44.8]} 11.
Qd2 {[%clk 0:02:29.3]} 11... d4 {[%clk 0:02:42.7]} 12. exd4 {[%clk 0:02:23.7]}
12... Bxd4 {[%clk 0:02:43.6]} 13. c3 {[%clk 0:02:24.6]} 13... Be5 {[%clk
0:02:40]} 14. O-O {[%clk 0:02:09.1]} 14... Rc8 {[%clk 0:02:40]} 15. Kh1 {[%clk
0:02:02.7]} 15... O-O {[%clk 0:02:39.1]} 16. f4 {[%clk 0:02:02.9]} 16... Rfd8
{[%clk 0:02:39.3]} 17. Qe1 {[%clk 0:01:42.4]} 17... Bd6 {[%clk 0:02:35.6]} 18.
c4 {[%clk 0:01:41.9]} 18... Bb4 {[%clk 0:02:32.5]} 19. Qe4 {[%clk 0:01:30.5]}
19... Rc7 {[%clk 0:02:13]} 20. Qf3 {[%clk 0:00:51.8]} 20... Bf5 {[%clk
0:02:09.5]} 21. a3 {[%clk 0:00:50.1]} 21... Rd3 {[%clk 0:01:55.9]} 22. Qe2
{[%clk 0:00:46.3]} 22... Re7 {[%clk 0:01:53.1]} 23. Qc2 {[%clk 0:00:39.1]} 23...
Bc5 {[%clk 0:01:46.9]} 24. g4 {[%clk 0:00:33]} 24... Rf3 {[%clk 0:00:59.2]} 25.
Qxf5 {[%clk 0:00:29.9]} 25... Rxf1+ {[%clk 0:00:57.9]} 26. Bxf1 {[%clk
0:00:30.8]} 26... Qc6+ {[%clk 0:00:53.4]} 27. Qd5 {[%clk 0:00:29.7]} 27... Re1
{[%clk 0:00:51.8]} 28. Kg2 {[%clk 0:00:15.6]} 28... Bd4 {[%clk 0:00:31.6]} 29.
Qxc6 {[%clk 0:00:15.8]} 29... bxc6 {[%clk 0:00:29.4]} 30. Ra2 {[%clk 0:00:16.7]}
30... Rxb1 {[%clk 0:00:28.3]} 31. Rd2 {[%clk 0:00:17]} 31... c5 {[%clk
0:00:23.5]} 32. b4 {[%clk 0:00:16.8]} 32... g6 {[%clk 0:00:21.7]} 33. bxc5
{[%clk 0:00:14.3]} 33... Bxc5 {[%clk 0:00:22.6]} 34. a4 {[%clk 0:00:13.5]} 34...
Be3 {[%clk 0:00:13.5]} 35. Rd7 {[%clk 0:00:11.6]} 35... Bxf4 {[%clk 0:00:10.8]}
36. Rxa7 {[%clk 0:00:11.4]} 36... Rb2+ {[%clk 0:00:11.2]} 37. Kf3 {[%clk
0:00:11.3]} 37... Bxh2 {[%clk 0:00:11.1]} 38. c5 {[%clk 0:00:09.8]} 38... Bg1
{[%clk 0:00:11.5]} 39. Bc4 {[%clk 0:00:09.5]} 39... Bxc5 {[%clk 0:00:05.3]} 40.
Rxf7 {[%clk 0:00:09.6]} 40... Rc2 {[%clk 0:00:03.2]} 41. Bd5 {[%clk 0:00:07.7]}
41... Rc3+ {[%clk 0:00:03]} 42. Ke2 {[%clk 0:00:06.5]} 42... Kh8 {[%clk
0:00:03.3]} 43. Rxf6 {[%clk 0:00:06.4]} 43... Bd4 {[%clk 0:00:03.3]} 44. Rf8+
{[%clk 0:00:06.1]} 44... Kg7 {[%clk 0:00:03.4]} 45. Rf4 {[%clk 0:00:05.2]} 45...
Be5 {[%clk 0:00:03.1]} 46. Re4 {[%clk 0:00:05.4]} 46... Bf6 {[%clk 0:00:03.5]}
47. a5 {[%clk 0:00:05.8]} 47... Ra3 {[%clk 0:00:03.3]} 48. Re8 {[%clk
0:00:02.9]} 48... Rxa5 {[%clk 0:00:02.8]} 49. Be6 {[%clk 0:00:03.8]} 49... Re5+
{[%clk 0:00:02]} 50. Kf3 {[%clk 0:00:04.4]} 50... Bg5 {[%clk 0:00:01.8]} 51. Kg2
{[%clk 0:00:03]} 51... Re3 {[%clk 0:00:01.5]} 52. Rg8+ {[%clk 0:00:02.5]} 52...
Kf6 {[%clk 0:00:01.4]} 53. Bd5 {[%clk 0:00:02.8]} 53... Rc3 {[%clk 0:00:02.3]}
54. Bf3 {[%clk 0:00:03]} 54... Ke5 {[%clk 0:00:03]} 55. Re8+ {[%clk 0:00:03]}
55... Kf6 {[%clk 0:00:02.7]} 56. Rh8 {[%clk 0:00:03.3]} 56... Kg7 {[%clk
0:00:03]} 57. Ra8 {[%clk 0:00:04]} 57... Rc2+ {[%clk 0:00:03.7]} 58. Kf1 {[%clk
0:00:04.1]} 58... Bf6 {[%clk 0:00:04.3]} 59. Ra7+ {[%clk 0:00:04.6]} 59... Kh6
{[%clk 0:00:04.4]} 60. Be2 {[%clk 0:00:05.2]} 60... Bd4 {[%clk 0:00:04.6]} 61.
Ra4 {[%clk 0:00:05.3]} 61... Be3 {[%clk 0:00:04.9]} 62. Ra3 {[%clk 0:00:05]}
62... Rc1+ {[%clk 0:00:05.7]} 63. Kg2 {[%clk 0:00:04.9]} 63... Bg5 {[%clk
0:00:06.6]} 64. Rh3+ {[%clk 0:00:04.9]} 64... Kg7 {[%clk 0:00:06.2]} 65. Rb3
{[%clk 0:00:05.8]} 65... Rc2 {[%clk 0:00:06.4]} 66. Rb7+ {[%clk 0:00:05.8]}
66... Kf6 {[%clk 0:00:06.3]} 67. Kf3 {[%clk 0:00:06.7]} 67... h6 {[%clk
0:00:06.2]} 68. Rb6+ {[%clk 0:00:06.9]} 68... Kg7 {[%clk 0:00:06.4]} 69. Rxg6+
{[%clk 0:00:06.8]} 69... Kf7 {[%clk 0:00:04.2]} 70. Rd6 {[%clk 0:00:05.7]} 70...
Rc3+ {[%clk 0:00:04.5]} 71. Rd3 {[%clk 0:00:05.9]} 71... Rc5 {[%clk 0:00:04]}
72. Rd7+ {[%clk 0:00:05.7]} 72... Kf6 {[%clk 0:00:04.1]} 73. Rb7 {[%clk
0:00:06.6]} 73... Ke5 {[%clk 0:00:04.6]} 74. Bd3 {[%clk 0:00:06.5]} 74... Rc3
{[%clk 0:00:04.8]} 75. Ke2 {[%clk 0:00:06.1]} 75... Kd4 {[%clk 0:00:05]} 76. Bf5
{[%clk 0:00:06.4]} 76... Ra3 {[%clk 0:00:04.2]} 77. Rd7+ {[%clk 0:00:06.2]}
77... Ke5 {[%clk 0:00:04.6]} 78. Rd3 {[%clk 0:00:05.4]} 78... Ra2+ {[%clk
0:00:04.2]} 79. Kf3 {[%clk 0:00:06.1]} 79... Bh4 {[%clk 0:00:04.4]} 80. Rd1
{[%clk 0:00:05.6]} 80... Rf2+ {[%clk 0:00:04.2]} 81. Ke3 {[%clk 0:00:06.2]}
81... Rh2 {[%clk 0:00:04]} 82. Rf1 {[%clk 0:00:06.1]} 82... Bg5+ {[%clk
0:00:04.2]} 83. Kd3 {[%clk 0:00:06]} 83... Rd2+ {[%clk 0:00:03.9]} 84. Kc4
{[%clk 0:00:06.6]} 84... Rd4+ {[%clk 0:00:04]} 85. Kc3 {[%clk 0:00:06.6]} 85...
Rd8 {[%clk 0:00:03.4]} 86. Re1+ {[%clk 0:00:06.5]} 86... Kf4 {[%clk 0:00:03.7]}
87. Kc4 {[%clk 0:00:06.4]} 87... Bh4 {[%clk 0:00:01.8]} 88. Rf1+ {[%clk
0:00:06.5]} 88... Ke3 {[%clk 0:00:01.7]} 89. Ra1 {[%clk 0:00:04.7]} 1-0

[Event "*** Titled Tuesday Blitz"]
[Site "Chess.com"]
[Date "2021.03.16"]
[Round "6"]
[White "Bodnar_Mykola"]
[Black "SF-96"]
[Result "1-0"]
[WhiteElo "2478"]
[BlackElo "2585"]
[TimeControl "180+1"]
[EndTime "11:09:05 PDT"]
[Termination "Bodnar_Mykola won by checkmate"]

1. e4 {[%clk 0:03:00.9]} 1... e5 {[%clk 0:02:59.7]} 2. Nf3 {[%clk 0:03:00.1]}
2... Nc6 {[%clk 0:03:00.2]} 3. Bc4 {[%clk 0:02:59.8]} 3... Bc5 {[%clk
0:03:00.1]} 4. c3 {[%clk 0:02:59.9]} 4... Nf6 {[%clk 0:03:00.3]} 5. d3 {[%clk
0:03:00.4]} 5... d6 {[%clk 0:02:56.4]} 6. O-O {[%clk 0:03:00.6]} 6... h6 {[%clk
0:02:54]} 7. Re1 {[%clk 0:02:55.5]} 7... O-O {[%clk 0:02:51.9]} 8. h3 {[%clk
0:02:53.1]} 8... a6 {[%clk 0:02:46.8]} 9. a4 {[%clk 0:02:51.9]} 9... Ba7 {[%clk
0:02:45.6]} 10. a5 {[%clk 0:02:48]} 10... Ne7 {[%clk 0:02:42.5]} 11. d4 {[%clk
0:02:45.9]} 11... exd4 {[%clk 0:02:22.2]} 12. cxd4 {[%clk 0:02:46.8]} 12... d5
{[%clk 0:02:22.6]} 13. exd5 {[%clk 0:02:29.8]} 13... Nexd5 {[%clk 0:02:22.8]}
14. Nc3 {[%clk 0:02:30]} 14... Be6 {[%clk 0:02:10.2]} 15. Qb3 {[%clk 0:02:04.7]}
15... Rb8 {[%clk 0:02:00]} 16. Bd2 {[%clk 0:01:57.1]} 16... Re8 {[%clk
0:01:52.9]} 17. Rad1 {[%clk 0:01:48]} 17... c6 {[%clk 0:01:42.8]} 18. Na4 {[%clk
0:01:47.8]} 18... Nc7 {[%clk 0:01:23.3]} 19. Bf4 {[%clk 0:01:24.7]} 19... Bxc4
{[%clk 0:01:11.6]} 20. Qxc4 {[%clk 0:01:25.6]} 20... Qd5 {[%clk 0:01:11.2]} 21.
Qc3 {[%clk 0:01:15.5]} 21... Nb5 {[%clk 0:01:03.4]} 22. Qb4 {[%clk 0:01:08.1]}
22... Rxe1+ {[%clk 0:00:46.5]} 23. Rxe1 {[%clk 0:01:09]} 23... Nxd4 {[%clk
0:00:47]} 24. Nxd4 {[%clk 0:01:03.9]} 24... Rd8 {[%clk 0:00:32.7]} 25. Nf3
{[%clk 0:01:01.5]} 25... Qf5 {[%clk 0:00:30]} 26. Be3 {[%clk 0:00:54.5]} 26...
Bxe3 {[%clk 0:00:28.2]} 27. Rxe3 {[%clk 0:00:55]} 27... Nd5 {[%clk 0:00:21.3]}
28. Qd2 {[%clk 0:00:51.5]} 28... Kh7 {[%clk 0:00:13]} 29. Re1 {[%clk 0:00:49.2]}
29... Rd6 {[%clk 0:00:09.9]} 30. Nc3 {[%clk 0:00:45.9]} 30... Rg6 {[%clk
0:00:07.1]} 31. Nxd5 {[%clk 0:00:45.7]} 31... Qxf3 {[%clk 0:00:06.6]} 32. Nf4
{[%clk 0:00:41.8]} 32... Rg5 {[%clk 0:00:04.8]} 33. Qd3+ {[%clk 0:00:40.9]}
33... Qxd3 {[%clk 0:00:04.7]} 34. Nxd3 {[%clk 0:00:41.8]} 34... Rxa5 {[%clk
0:00:05.5]} 35. Re7 {[%clk 0:00:41.6]} 35... Rd5 {[%clk 0:00:06.2]} 36. Ne1
{[%clk 0:00:33.5]} 36... Rb5 {[%clk 0:00:06.6]} 37. Re2 {[%clk 0:00:33.1]} 37...
a5 {[%clk 0:00:06.5]} 38. f4 {[%clk 0:00:32.9]} 38... Rb3 {[%clk 0:00:07.1]} 39.
Kf2 {[%clk 0:00:33.2]} 39... Kg6 {[%clk 0:00:06.7]} 40. Nf3 {[%clk 0:00:31.6]}
40... a4 {[%clk 0:00:04.1]} 41. Nd4 {[%clk 0:00:29.4]} 41... Rb4 {[%clk
0:00:04.2]} 42. Ke3 {[%clk 0:00:29.9]} 42... Kf6 {[%clk 0:00:02.3]} 43. Rc2
{[%clk 0:00:28.2]} 43... g6 {[%clk 0:00:02.6]} 44. g4 {[%clk 0:00:27.3]} 44...
h5 {[%clk 0:00:02.5]} 45. Ke4 {[%clk 0:00:27]} 45... hxg4 {[%clk 0:00:02.7]} 46.
hxg4 {[%clk 0:00:27.9]} 46... a3 {[%clk 0:00:02.4]} 47. bxa3 {[%clk 0:00:27.2]}
47... Ra4 {[%clk 0:00:03.3]} 48. Rc3 {[%clk 0:00:25.8]} 48... Kg7 {[%clk
0:00:01.3]} 49. g5 {[%clk 0:00:24.4]} 49... c5 {[%clk 0:00:01.6]} 50. Rxc5
{[%clk 0:00:24.3]} 50... Rxa3 {[%clk 0:00:02.5]} 51. Rb5 {[%clk 0:00:24.7]}
51... Ra1 {[%clk 0:00:02.2]} 52. Rxb7 {[%clk 0:00:23.8]} 52... Re1+ {[%clk
0:00:03.1]} 53. Kf3 {[%clk 0:00:22.6]} 53... Kg8 {[%clk 0:00:03.8]} 54. Nc6
{[%clk 0:00:21.5]} 54... Re8 {[%clk 0:00:02.8]} 55. Ne5 {[%clk 0:00:21.4]} 55...
Rf8 {[%clk 0:00:03.4]} 56. Nd7 {[%clk 0:00:21.2]} 56... Rd8 {[%clk 0:00:03.9]}
57. Nf6+ {[%clk 0:00:21.4]} 57... Kg7 {[%clk 0:00:04.5]} 58. Kg4 {[%clk
0:00:21.8]} 58... Rd1 {[%clk 0:00:04.5]} 59. Kf3 {[%clk 0:00:17.7]} 59... Rf1+
{[%clk 0:00:04.4]} 60. Ke3 {[%clk 0:00:18.2]} 60... Re1+ {[%clk 0:00:05.1]} 61.
Kf2 {[%clk 0:00:18.8]} 61... Ra1 {[%clk 0:00:05.8]} 62. Ng4 {[%clk 0:00:18.8]}
62... Ra2+ {[%clk 0:00:06]} 63. Kf3 {[%clk 0:00:19.3]} 63... Ra3+ {[%clk
0:00:06.6]} 64. Ne3 {[%clk 0:00:19.9]} 64... Rc3 {[%clk 0:00:06.9]} 65. Rd7
{[%clk 0:00:20.3]} 65... Ra3 {[%clk 0:00:07.1]} 66. Ke4 {[%clk 0:00:20.8]} 66...
Ra4+ {[%clk 0:00:07.7]} 67. Ke5 {[%clk 0:00:20.3]} 67... Ra3 {[%clk 0:00:07.3]}
68. Nd5 {[%clk 0:00:20.3]} 68... Ra1 {[%clk 0:00:07.8]} 69. Rb7 {[%clk
0:00:17.2]} 69... Re1+ {[%clk 0:00:07.9]} 70. Kd4 {[%clk 0:00:17.8]} 70... Rd1+
{[%clk 0:00:08.5]} 71. Ke4 {[%clk 0:00:18.3]} 71... Re1+ {[%clk 0:00:09.1]} 72.
Ne3 {[%clk 0:00:18.8]} 72... Ra1 {[%clk 0:00:09.9]} 73. Kf3 {[%clk 0:00:18.9]}
73... Ra3 {[%clk 0:00:10.1]} 74. Rc7 {[%clk 0:00:18.1]} 74... Rb3 {[%clk
0:00:10.3]} 75. Ke4 {[%clk 0:00:18]} 75... Ra3 {[%clk 0:00:10.6]} 76. Rc4 {[%clk
0:00:17.7]} 76... Ra1 {[%clk 0:00:10.3]} 77. f5 {[%clk 0:00:17.8]} 77... gxf5+
{[%clk 0:00:09.8]} 78. Kxf5 {[%clk 0:00:18.3]} 78... Ra5+ {[%clk 0:00:09.7]} 79.
Kg4 {[%clk 0:00:17.6]} 79... Ra3 {[%clk 0:00:08.6]} 80. Nf5+ {[%clk 0:00:17.2]}
80... Kg8 {[%clk 0:00:05.3]} 81. Rc8+ {[%clk 0:00:16.4]} 81... Kh7 {[%clk
0:00:05.9]} 82. Rd8 {[%clk 0:00:16.3]} 82... Ra4+ {[%clk 0:00:05.4]} 83. Nd4
{[%clk 0:00:10.8]} 83... f6 {[%clk 0:00:03.7]} 84. gxf6 {[%clk 0:00:10]} 84...
Kg6 {[%clk 0:00:04.2]} 85. Rd6 {[%clk 0:00:10.6]} 85... Ra1 {[%clk 0:00:03.9]}
86. Kf4 {[%clk 0:00:10.3]} 86... Rf1+ {[%clk 0:00:04.2]} 87. Nf3 {[%clk
0:00:10.1]} 87... Ra1 {[%clk 0:00:03.5]} 88. Ne5+ {[%clk 0:00:09.9]} 88... Kh7
{[%clk 0:00:04.1]} 89. Kf5 {[%clk 0:00:10.2]} 89... Rf1+ {[%clk 0:00:04]} 90.
Ke6 {[%clk 0:00:10.5]} 90... Rf2 {[%clk 0:00:04.9]} 91. Rd7+ {[%clk 0:00:10.6]}
91... Kg8 {[%clk 0:00:04.9]} 92. f7+ {[%clk 0:00:08.8]} 92... Kg7 {[%clk
0:00:05.5]} 93. Rd8 {[%clk 0:00:07.7]} 93... Rf6+ {[%clk 0:00:05.7]} 94. Ke7
{[%clk 0:00:08.1]} 94... Rf5 {[%clk 0:00:06.2]} 95. f8=Q+ {[%clk 0:00:08.1]}
95... Kh7 {[%clk 0:00:04.4]} 96. Qxf5+ {[%clk 0:00:08]} 96... Kh6 {[%clk
0:00:03.8]} 97. Qg6# {[%clk 0:00:08.4]} 1-0

[Event "*** Titled Tuesday Blitz"]
[Site "Chess.com"]
[Date "2021.03.16"]
[Round "7"]
[White "muchojogo"]
[Black "CraiggoryC"]
[Result "1-0"]
[WhiteElo "2421"]
[BlackElo "2290"]
[TimeControl "180+1"]
[EndTime "11:13:02 PDT"]
[Termination "muchojogo won by resignation"]

1. d4 {[%clk 0:03:00.9]} 1... Nf6 {[%clk 0:02:59.6]} 2. Bf4 {[%clk 0:03:00.2]}
2... g6 {[%clk 0:02:58.6]} 3. e3 {[%clk 0:03:00.7]} 3... Bg7 {[%clk 0:02:58.8]}
4. Nf3 {[%clk 0:03:01.1]} 4... c5 {[%clk 0:02:55.9]} 5. c3 {[%clk 0:03:00.2]}
5... b6 {[%clk 0:02:50]} 6. h3 {[%clk 0:03:00.2]} 6... Bb7 {[%clk 0:02:39.6]} 7.
Nbd2 {[%clk 0:03:00.3]} 7... O-O {[%clk 0:02:37.7]} 8. Be2 {[%clk 0:02:59.5]}
8... d6 {[%clk 0:02:37.3]} 9. O-O {[%clk 0:02:59.7]} 9... Nbd7 {[%clk
0:02:36.8]} 10. Bh2 {[%clk 0:02:59.7]} 10... cxd4 {[%clk 0:02:32]} 11. exd4
{[%clk 0:02:59.3]} 11... Qc7 {[%clk 0:02:29]} 12. a4 {[%clk 0:02:59]} 12... a6
{[%clk 0:02:28.9]} 13. Re1 {[%clk 0:02:55.3]} 13... Rfe8 {[%clk 0:02:28.2]} 14.
Bf1 {[%clk 0:02:54.4]} 14... e5 {[%clk 0:02:20.4]} 15. dxe5 {[%clk 0:02:43.9]}
15... dxe5 {[%clk 0:02:21.3]} 16. Nc4 {[%clk 0:02:44.5]} 16... Rad8 {[%clk
0:02:12.6]} 17. Nd6 {[%clk 0:02:33.3]} 17... Bxf3 {[%clk 0:01:56]} 18. Nxe8
{[%clk 0:02:31.1]} 18... Bxd1 {[%clk 0:01:53.6]} 19. Nxc7 {[%clk 0:02:30.7]} 1-0

[Event "*** Titled Tuesday Blitz"]
[Site "Chess.com"]
[Date "2021.03.16"]
[Round "7"]
[White "winniethepooh04"]
[Black "Smile2005"]
[Result "0-1"]
[WhiteElo "2262"]
[BlackElo "2431"]
[TimeControl "180+1"]
[EndTime "11:13:15 PDT"]
[Termination "Smile2005 won by checkmate"]

1. d4 {[%clk 0:02:42.6]} 1... Nf6 {[%clk 0:02:59.7]} 2. Nf3 {[%clk 0:02:42.8]}
2... g6 {[%clk 0:02:59.6]} 3. Bf4 {[%clk 0:02:43.4]} 3... Bg7 {[%clk 0:03:00.5]}
4. e3 {[%clk 0:02:41.9]} 4... O-O {[%clk 0:03:01.1]} 5. Be2 {[%clk 0:02:40.9]}
5... d5 {[%clk 0:03:01.8]} 6. O-O {[%clk 0:02:40.1]} 6... c5 {[%clk 0:03:02.5]}
7. c3 {[%clk 0:02:40.5]} 7... Nc6 {[%clk 0:03:03.2]} 8. Nbd2 {[%clk 0:02:41]}
8... Nd7 {[%clk 0:03:03.8]} 9. Rc1 {[%clk 0:02:38.9]} 9... e5 {[%clk 0:03:04.4]}
10. dxe5 {[%clk 0:02:39]} 10... Ndxe5 {[%clk 0:03:05.3]} 11. Nxe5 {[%clk
0:02:39.4]} 11... Nxe5 {[%clk 0:03:06.2]} 12. Nf3 {[%clk 0:02:39.9]} 12... Nc6
{[%clk 0:03:07]} 13. h3 {[%clk 0:02:38.6]} 13... h6 {[%clk 0:03:05.8]} 14. Bh2
{[%clk 0:02:38.5]} 14... Be6 {[%clk 0:03:06]} 15. Qd2 {[%clk 0:02:37.1]} 15...
Qa5 {[%clk 0:03:05.8]} 16. Rfd1 {[%clk 0:02:37]} 16... Rfd8 {[%clk 0:03:05.6]}
17. a3 {[%clk 0:02:36.3]} 17... b5 {[%clk 0:03:05.5]} 18. Qc2 {[%clk 0:02:33.7]}
18... Qb6 {[%clk 0:03:00.5]} 19. e4 {[%clk 0:02:30.7]} 19... d4 {[%clk
0:02:58.4]} 20. cxd4 {[%clk 0:02:29]} 20... Nxd4 {[%clk 0:02:58.6]} 21. Nxd4
{[%clk 0:02:29]} 21... Bxd4 {[%clk 0:02:59.5]} 22. Bf3 {[%clk 0:02:22.1]} 22...
Rac8 {[%clk 0:02:44.6]} 23. Kh1 {[%clk 0:02:20.8]} 23... c4 {[%clk 0:02:44]} 24.
Qe2 {[%clk 0:02:15.3]} 24... Bxf2 {[%clk 0:02:42.5]} 25. Rxd8+ {[%clk
0:02:13.1]} 25... Rxd8 {[%clk 0:02:42.8]} 26. Rd1 {[%clk 0:02:12.6]} 26... Rxd1+
{[%clk 0:02:42.3]} 27. Qxd1 {[%clk 0:02:13.5]} 27... Qd4 {[%clk 0:02:42.6]} 28.
Qc2 {[%clk 0:02:04.5]} 28... Qe3 {[%clk 0:02:37.2]} 29. Bb8 {[%clk 0:02:00.8]}
29... Qe1+ {[%clk 0:02:33]} 30. Kh2 {[%clk 0:02:00.2]} 30... Qg1# {[%clk
0:02:33.9]} 0-1